lending/lending_fUSD_20241005
["ID","MTS","AMOUNT","RATE_DAILY","PERIOD"]
[339918466,1728151831527,-1528.97249487,0.00010988,2]
[339918468,1728151831538,-620.24944524,0.00010997,2]
[339918470,1728151831549,-54965.5409813,0.00010998,2]
[339918472,1728151831558,-39138.9444055,0.00010998,2]
[339918474,1728151831567,-5795.0243087,0.00010998,2]
[339918476,1728151831578,-500.0,0.00010999,2]
[339918478,1728151831587,-158.89716813,0.00010999,2]
[339918480,1728151831596,-17417.70200184,0.00011,2]
[339918483,1728151831610,-359.84461539,0.00011,2]
[339918485,1728151831621,-617.27666,0.00011,2]
[339918490,1728151831777,-86392.98644307,0.00011,2]
[339918525,1728151837676,-450320.22706192,0.00011,2]
[339918526,1728151837688,-685.10637703,0.00011,2]
[339918527,1728151837772,-1498.63757401,0.00011,2]
[339918528,1728151837783,-327.698,0.00011,2]
[339918529,1728151837794,-1323.31540208,0.00011,2]
[339918530,1728151837805,-615.615,0.00011,2]
[339918531,1728151837818,-9807.8,0.00011,2]
[339918532,1728151837830,-30710.50000001,0.00011,2]
[339918533,1728151837842,-693.29470197,0.00011,2]
[339918534,1728151837854,-1005.54647921,0.00011,2]
[339918535,1728151837866,-889.3722,0.00011,2]
[339918542,1728151839107,150.0,0.00010838,2]
[339918543,1728151839214,150.0,0.00010958,2]
[339918546,1728151839576,-150.0,0.00010987,2]
[339918547,1728151839586,-220592.04531603,0.00011,2]
[339918548,1728151839597,-256.62236691,0.00011,2]
[339918549,1728151839615,-223993.97608023,0.00011,2]
[339918550,1728151839626,-158400.56681728,0.00011,2]
[339918551,1728151839637,-153676.5733211,0.00011,2]
[339918552,1728151839648,-6367.9,0.00011,2]
[339918553,1728151839659,-8257.1865332,0.00011,2]
[339918554,1728151839671,-3422.0802614,0.00011,2]
[339918555,1728151839683,-4786.36046934,0.00011,2]
[339918556,1728151839694,-3198.49104601,0.00011,2]
[339918557,1728151839705,-4617.91216045,0.00011,2]
[339918558,1728151839715,-509.1254101,0.00011,2]
[339918559,1728151839727,-615.21,0.00011,2]
[339918560,1728151839738,-6206.0,0.00011,2]
[339918561,1728151839749,-295.2679983,0.00011,2]
[339918562,1728151839764,-639.318,0.00011,2]
[339918563,1728151839776,-560.0563458,0.00011,2]
[339918564,1728151839786,-1015.75187423,0.00011,2]
[339918565,1728151839800,-353.59275053,0.00011,2]
[339918566,1728151839811,-236602.22154597,0.00011,2]
[339918567,1728151839822,-2268.5,0.00011,2]
[339918568,1728151839833,-2447.98619997,0.00011,2]
[339918569,1728151839844,-760.74789201,0.00011,2]
[339918570,1728151839855,-2616.92533353,0.00011,2]
[339918571,1728151839869,-24704.93830315,0.00011,2]
[339918572,1728151839879,-2408.76417884,0.00011,2]
[339918573,1728151839891,-17773.46864637,0.00011,2]
[339918574,1728151839902,-1529.43690522,0.00011,2]
[339918575,1728151839914,-7419.21920943,0.00011,2]
[339918576,1728151839925,-3162.60000008,0.00011,2]
[339918577,1728151839937,-6699.04999996,0.00011,2]
[339918578,1728151839948,-835.71347657,0.00011,2]
[339918579,1728151839959,-320.91406874,0.00011,2]
[339918580,1728151839970,-14980.65288637,0.00011,2]
[339918581,1728151839981,-1736.41306025,0.00011,2]
[339918582,1728151839997,-394.66566224,0.00011,2]
[339918583,1728151840008,-1844.94999997,0.00011,2]
[339918584,1728151840020,-45000.0,0.00011,2]
[339918595,1728151842903,-13580.98996485,0.00011,2]
[339918596,1728151842917,-446.39999929,0.00011,2]
[339918597,1728151842928,-15272.82452288,0.00011,2]
[339918598,1728151842940,-30733.86624527,0.00011,2]
[339918599,1728151842951,-1839.99,0.00011,2]
[339918600,1728151842964,-642.94,0.00011,2]
[339918601,1728151842975,-698.23,0.00011,2]
[339918602,1728151842986,-6156.95080001,0.00011,2]
[339918604,1728151842998,-4284.0002,0.00011,2]
[339918605,1728151843012,-1228.76,0.00011,2]
[339918606,1728151843023,-46218.06484184,0.00011,2]
[339918626,1728151845664,-16214.5208,0.00011,2]
[339918629,1728151845676,-508.33631799,0.00011,2]
[339918633,1728151845692,-316.64999999,0.00011,2]
[339918635,1728151845708,-21084.52601043,0.00011,2]
[339918638,1728151845731,-4776.42775609,0.00011,2]
[339918644,1728151845828,-922.77,0.00011,2]
[339918647,1728151845850,-448.47036635,0.00011,2]
[339918651,1728151845949,-366.29244228,0.00011,2]
[339918728,1728151846859,150.0,0.00010772,2]
[339919135,1728151851334,250.0,0.00010959,2]
[339919204,1728151855470,150.0,0.00010936,2]
[339919205,1728151863671,150.0,0.00010905,2]
[339919206,1728151863873,150.0,0.00010742,2]
[339919207,1728151863928,150.0,0.00010886,2]
[339919208,1728151863979,150.0,0.00010923,2]
[339919209,1728151864058,150.0,0.00010923,2]
[339919210,1728151876942,151.16962535,0.000109,2]
[339919212,1728151942491,15400.6063,0.000109,2]
[339919215,1728151954861,3402.60273762,0.000109,2]
[339919216,1728152003827,2645.82612789,0.000109,2]
[339919217,1728152029827,3854.9145,0.000109,2]
[339919218,1728152090019,2268.40182508,0.000109,2]
[339919219,1728152091774,1764.58477927,0.000109,2]
[339919220,1728152098332,8523.6864,0.000109,2]
[339919221,1728152103610,157.91,0.00010959,2]
[339919222,1728152152391,1588.6922,0.000109,2]
[339919223,1728152173318,212.36,9.049e-05,2]
[339919224,1728152214407,3428.02,0.0001094,2]
[339919225,1728152225235,1512.26788338,0.000109,2]
[339919226,1728152244938,150.0,0.00010869,2]
[339919227,1728152244995,150.0,0.00010894,2]
[339919228,1728152292646,250.0,0.00010901,2]
[339919229,1728152301480,150.0,0.00010753,2]
[339919230,1728152301548,150.0,0.00010868,2]
[339919231,1728152360480,1008.17858892,0.000109,2]
[339919232,1728152422854,150.0,0.00010784,2]
[339919233,1728152422899,150.0,0.00010965,2]
[339919234,1728152481969,150.0,0.00010898,2]
[339919235,1728152482013,150.0,0.00010738,2]
[339919236,1728152482069,150.0,0.00010967,2]
[339919237,1728152482138,150.0,0.00010935,2]
[339919238,1728152482312,150.0,0.0001097,2]
[339919239,1728152491808,150.0,0.00010772,2]
[339919240,1728152491860,150.0,0.00010906,2]
[339919241,1728152491912,150.0,0.00010806,2]
[339919242,1728152495678,672.11905928,0.000109,2]
[339919243,1728152499981,150.0,0.00010822,2]
[339919244,1728152500126,150.0,0.00010754,2]
[339919245,1728152500172,150.0,0.00010872,2]
[339919246,1728152507880,150.0,0.0001078,2]
[339919247,1728152517314,1588.12630137,0.000109,2]
[339919248,1728152527511,150.0,0.00010852,2]
[339919249,1728152527794,150.0,0.0001074,2]
[339919250,1728152557982,478.18,0.00010776,2]
[339919251,1728152571766,579.77,0.00010848,2]
[339919252,1728152582480,331.56,0.00010936,2]
[339919253,1728152598824,160.22,0.00010959,2]
[339919254,1728152629365,175.0,0.00010898,2]
[339919255,1728152630878,448.07937286,0.000109,2]
[339919256,1728152695076,19166.72,0.00010802,2]
[339919257,1728152766144,298.7195819,0.000109,2]
[339919258,1728152771141,298.71958189,0.00010902,2]
[339919259,1728152776124,298.71958189,0.00010903,2]
[339919260,1728152801594,216.19,8.851e-05,2]
[339919261,1728152867604,250.0,0.00010686,2]
[339919263,1728152901704,150.0,0.00010871,2]
[339919264,1728152901780,150.0,0.00010725,2]
[339919265,1728152918227,383.84,0.00010775,2]
[339919268,1728152942494,1429.31367126,0.000109,2]
[339919275,1728152947484,1429.31367118,0.000109,2]
[339919276,1728152952521,1429.31367118,0.00010901,2]
[339919277,1728152957451,1429.31367118,0.00010901,2]
[339919278,1728152962470,1429.31367118,0.00010901,2]
[339919279,1728152967490,1429.31367118,0.00010902,2]
[339919281,1728152972474,1429.31367118,0.00010902,2]
[339919282,1728152977465,1429.31367118,0.00010902,2]
[339919283,1728152982558,1429.31367118,0.00010903,2]
[339919284,1728152987498,1429.31367118,0.00010903,2]
[339919285,1728153021510,150.0,0.00010824,2]
[339919286,1728153021576,150.0,0.00010879,2]
[339919287,1728153021635,150.0,0.00010905,2]
[339919288,1728153028815,158.59352518,0.000109,2]
[339919289,1728153031715,-250.0,0.00010982,2]
[339919290,1728153031724,-150.0,0.00010983,2]
[339919291,1728153031733,-196.88204439,0.0001099,2]
[339919292,1728153031742,-196.88204439,0.0001099,2]
[339919293,1728153031751,-196.88204439,0.0001099,2]
[339919294,1728153031761,-2087.91318728,0.00010995,2]
[339919296,1728153031772,-1671.59845472,0.00010995,2]
[339919298,1728153031782,-2269.42913966,0.00010995,2]
[339919300,1728153031792,-450.037073,0.00010995,2]
[339919301,1728153031803,-5439.96,0.00010995,2]
[339919302,1728153031814,-709.73244454,0.00010995,2]
[339919303,1728153031829,-365.35210606,0.00010995,2]
[339919304,1728153031840,-267.79242884,0.00010995,2]
[339919305,1728153031849,-40415.4302119,0.00010995,2]
[339919306,1728153031859,-29159.2265125,0.00010995,2]
[339919307,1728153031868,-1033.7490753,0.00010997,2]
[339919308,1728153031877,-1031.64495372,0.00010999,2]
[339919309,1728153031886,-512.47945569,0.00010999,2]
[339919310,1728153031895,-500.0,0.00010999,2]
[339919311,1728153031904,-500.0,0.00010999,2]
[339919312,1728153031914,-337.415803,0.00010999,2]
[339919313,1728153031923,-500.0,0.00010999,2]
[339919314,1728153031932,-500.0,0.00010999,2]
[339919315,1728153031942,-369.45606584,0.00010999,2]
[339919316,1728153031951,-500.0,0.00010999,2]
[339919317,1728153031960,-500.0,0.00010999,2]
[339919318,1728153031969,-500.0,0.00010999,2]
[339919319,1728153031978,-500.0,0.00010999,2]
[339919320,1728153031988,-500.0,0.00010999,2]
[339919321,1728153031997,-500.0,0.00010999,2]
[339919322,1728153032006,-500.0,0.00010999,2]
[339919323,1728153032015,-500.0,0.00010999,2]
[339919324,1728153032025,-500.0,0.00010999,2]
[339919325,1728153032034,-500.0,0.00010999,2]
[339919326,1728153032043,-500.0,0.00010999,2]
[339919327,1728153032053,-500.0,0.00010999,2]
[339919328,1728153032062,-500.0,0.00010999,2]
[339919329,1728153032071,-500.0,0.00010999,2]
[339919330,1728153032080,-500.0,0.00010999,2]
[339919331,1728153032089,-587.24522265,0.00010999,2]
[339919332,1728153032098,-500.0,0.00010999,2]
[339919333,1728153032107,-500.0,0.00010999,2]
[339919334,1728153032116,-500.0,0.00010999,2]
[339919335,1728153032125,-500.0,0.00010999,2]
[339919336,1728153032134,-52819.0464298,0.00011,2]
[339919338,1728153032146,-3101.3403,0.00011,2]
[339919340,1728153032157,-3099.91875805,0.00011,2]
[339919342,1728153032168,-368.7704374,0.00011,2]
[339919344,1728153032179,-1875.42835547,0.00011,2]
[339919346,1728153032190,-3358.35145136,0.00011,2]
[339919347,1728153032201,-397.92779334,0.00011,2]
[339919348,1728153032214,-2175.883476,0.00011,2]
[339919349,1728153032225,-21585.86360883,0.00011,2]
[339919350,1728153032236,-3569.7731183,0.00011,2]
[339919351,1728153032249,-545.44642781,0.00011,2]
[339919352,1728153032260,-74339.37081,0.00011,2]
[339919353,1728153032271,-478.59396333,0.00011,2]
[339919354,1728153032282,-239965.66085353,0.00011,2]
[339919355,1728153032297,-388.88750137,0.00011,2]
[339919356,1728153032308,-1649.09184316,0.00011,2]
[339919357,1728153032319,-17578.32732118,0.00011,2]
[339919358,1728153032330,-261.15578167,0.00011,2]
[339919359,1728153032341,-517.85068696,0.00011,2]
[339919360,1728153032353,-2375.16069498,0.00011,2]
[339919361,1728153032363,-2455.52727664,0.00011,2]
[339919362,1728153032375,-4598.57609927,0.00011,2]
[339919363,1728153032386,-6674.23832769,0.00011,2]
[339919366,1728153032573,-4796.58478385,0.00011,2]
[339919367,1728153032586,-2392.3966544,0.00011,2]
[339919368,1728153032597,-2538.53677235,0.00011,2]
[339919369,1728153032608,-1182.37724129,0.00011,2]
[339919370,1728153032619,-2655.98890577,0.00011,2]
[339919371,1728153032630,-297.99594133,0.00011,2]
[339919372,1728153032641,-92802.51460242,0.00011,2]
[339919373,1728153032652,-7929.82408757,0.00011,2]
[339919374,1728153032663,-1117.22136038,0.00011,2]
[339919375,1728153032674,-4250.50142563,0.00011,2]
[339919376,1728153032684,-8679.35967242,0.00011,2]
[339919377,1728153032699,-719.4241955,0.00011,2]
[339919378,1728153032710,-1074.32,0.00011,2]
[339919385,1728153037748,-901.71984,0.00011,2]
[339919387,1728153037760,-3742.70217563,0.00011,2]
[339919388,1728153037779,-28119.1141531,0.00011,2]
[339919389,1728153037790,-51634.86,0.00011,2]
[339919390,1728153037801,-767.86684678,0.00011,2]
[339919391,1728153037812,-3525.86554151,0.00011,2]
[339919392,1728153037823,-7082.35051429,0.00011,2]
[339919393,1728153037834,-201668.69949492,0.00011,2]
[339919394,1728153037845,-1128.24841438,0.00011,2]
[339919395,1728153037857,-897460.93220292,0.00011,2]
[339919396,1728153037868,-21049.79701956,0.00011,2]
[339919397,1728153037879,-26139.36932887,0.00011,2]
[339919398,1728153037891,-5979.78453988,0.00011,2]
[339919399,1728153037902,-500.0,0.00011,2]
[339919400,1728153037914,-1517.50982453,0.00011,2]
[339919401,1728153037925,-280.407,0.00011,2]
[339919402,1728153037937,-1833.36838384,0.00011,2]
[339919403,1728153037948,-1600.0,0.00011,2]
[339919404,1728153037960,-1759.48135128,0.00011,2]
[339919405,1728153037971,-2212.02777319,0.00011,2]
[339919406,1728153037986,-10441.17998013,0.00011,2]
[339919407,1728153037998,-524923.62939643,0.00011,2]
[339919408,1728153038009,-1586.04561394,0.00011,2]
[339919409,1728153038021,-257.82237684,0.00011,2]
[339919410,1728153038032,-5999.42878763,0.00011,2]
[339919411,1728153038043,-12504.31307594,0.00011,2]
[339919412,1728153038055,-23094.47568979,0.00011,2]
[339919413,1728153038065,-478.0684832,0.00011,2]
[339919414,1728153038084,-575.30635287,0.00011,2]
[339919415,1728153038095,-675.54813812,0.00011,2]
[339919416,1728153038107,-6904.82972179,0.00011,2]
[339919417,1728153038126,-1046916.58232435,0.00011,2]
[339919418,1728153038138,-1041.07666733,0.00011,2]
[339919419,1728153038149,-301.11415239,0.00011,2]
[339919420,1728153038161,-566.91797665,0.00011,2]
[339919421,1728153038172,-6218.1991,0.00011,2]
[339919423,1728153038183,-2111.13867946,0.00011,2]
[339919425,1728153038195,-533.64452675,0.00011,2]
[339919427,1728153038206,-32234.58733742,0.00011,2]
[339919429,1728153038217,-1101.02903969,0.00011,2]
[339919431,1728153038229,-500.56436029,0.00011,2]
[339919433,1728153038240,-3692.56121159,0.00011,2]
[339919594,1728153039751,-1406.98951982,0.00011,2]
[339919603,1728153039838,-61740.58683494,0.00011,2]
[339919604,1728153039849,-3395.52184776,0.00011,2]
[339919605,1728153039860,-1164.3740179,0.00011,2]
[339919684,1728153042797,-1472.0,0.00011,2]
[339919687,1728153042809,-523.7012728,0.00011,2]
[339919689,1728153042820,-349.4192146,0.00011,2]
[339919693,1728153043022,-60779.32503184,0.00011,2]
[339919694,1728153043033,-314.71509335,0.00011,2]
[339919752,1728153045931,-285.7919076,0.00011,2]
[339919760,1728153046018,-49346.39999999,0.00011,2]
[339919763,1728153046035,-18381.57771403,0.00011,2]
[339919764,1728153046046,-112122.98984328,0.00011,2]
[339919766,1728153046057,-21419.208,0.00011,2]
[339919792,1728153066527,1840.6387,0.000109,2]
[339919793,1728153083422,150.0,0.00010745,2]
[339919794,1728153096511,1000.0,0.000109,2]
[339919795,1728153120863,125815.8388,0.000109,2]
[339919796,1728153122042,168.83819443,0.000109,2]
[339919797,1728153144359,150.0,0.0001081,2]
[339919798,1728153152065,150.0,0.00010828,2]
[339919799,1728153152114,150.0,0.00010811,2]
[339919800,1728153154836,450.1028,0.000109,2]
[339919801,1728153160126,733.17835629,0.000109,2]
[339919802,1728153165081,733.17835629,0.00010906,2]
[339919803,1728153170164,733.17835629,0.00010911,2]
[339919804,1728153189371,160.76,0.00010959,2]
[339919805,1728153236625,6805.20547522,0.000109,2]
[339919806,1728153242076,6805.2054752,0.00010902,2]
[339919807,1728153246584,6805.2054752,0.00010903,2]
[339919808,1728153307915,3540.49178931,0.000109,2]
[339919809,1728153333081,183.92,0.00010959,2]
[339919810,1728153350307,232.84,9.09e-05,2]
[339919811,1728153355561,1045.03,0.00010933,2]
[339919812,1728153396657,500.0,0.00010959,2]
[339919813,1728153398002,226.0818,0.000109,2]
[339919814,1728153408220,475.5344,0.000109,2]
[339919815,1728153415986,31573.6408,0.000109,2]
[339919816,1728153427913,129639.3849,0.000109,2]
[339919817,1728153442040,191.92,0.00010931,2]
[339919818,1728153503674,250.0,0.00010931,2]
[339919819,1728153538937,154.02,0.00010831,2]
[339919820,1728153554131,658.0173,0.000109,2]
[339919821,1728153570108,11513.0,0.000114,3]
[339919822,1728153570355,228583.0,0.000104,2]
[339919823,1728153623712,339.9464,0.000109,2]
[339919824,1728153634214,11513.0,0.00012,5]
[339919825,1728153650552,150.0,0.00010959,2]
[339919827,1728153730929,250.0,0.0001082,2]
[339919828,1728153733089,3186.44261037,0.000109,2]
[339919829,1728153746976,254.450715,0.000109,2]
[339919830,1728153753229,167.64,0.00010884,2]
[339919831,1728153859699,165.69,0.00010959,2]
[339919832,1728153869025,294.27,8.322e-05,2]
[339919833,1728153869300,294.27,0.00010586,2]
[339919834,1728153881189,2897.8231,0.0001089,2]
[339919835,1728153948078,158.10949927,0.000109,2]
[339919836,1728153968644,182.12,8.192e-05,2]
[339919837,1728153985777,383.84,0.00010245,2]
[339919838,1728154043079,1000.0,0.00010245,2]
[339919839,1728154083935,154.65,0.00010247,2]
[339919840,1728154084355,154.65,0.00010256,2]
[339919841,1728154084584,154.65,0.00010264,2]
[339919842,1728154084834,154.65,0.00010273,2]
[339919843,1728154085055,154.65,0.00010281,2]
[339919844,1728154085304,154.65,0.0001029,2]
[339919845,1728154085561,154.65,0.00010298,2]
[339919846,1728154158239,2867.79834936,0.000109,2]
[339919847,1728154161011,150.0,0.00010959,2]
[339919848,1728154205994,176.82,0.00010244,2]
[339919849,1728154218804,250.0,0.00010257,2]
[339919852,1728154232032,-150.0,0.00010994,2]
[339919853,1728154232234,-364.32435242,0.00010995,2]
[339919876,1728154238021,-399.35491428,0.00010995,2]
[339919877,1728154238033,-795.2682055,0.00010995,2]
[339919878,1728154238044,-1007.38297438,0.00010995,2]
[339919879,1728154238056,-514.63525441,0.00010995,2]
[339919880,1728154238071,-534.02114835,0.00010995,2]
[339919881,1728154238082,-2807.67365618,0.00010995,2]
[339919882,1728154238092,-22413.58823072,0.00010995,2]
[339919883,1728154238103,-10658.58718106,0.00010995,2]
[339919884,1728154238115,-112.58458182,0.00010995,2]
[339919885,1728154238123,-925.7085201,0.00010995,2]
[339919886,1728154238133,-204.27063024,0.00010995,2]
[339919887,1728154238143,-5007.8468311,0.00010995,2]
[339919888,1728154238152,-3145.37379547,0.00010995,2]
[339919889,1728154238164,-819.98569266,0.00010995,2]
[339919890,1728154238175,-8229.985367,0.00010995,2]
[339919891,1728154238186,-729.17517403,0.00010995,2]
[339919892,1728154238198,-475.82133345,0.00010995,2]
[339919893,1728154238209,-1292.15771084,0.00010995,2]
[339919894,1728154238220,-6821.84844121,0.00010995,2]
[339919895,1728154238231,-2148.19088363,0.00010995,2]
[339919896,1728154238243,-1662.12038026,0.00010995,2]
[339919897,1728154238254,-283.55847122,0.00010995,2]
[339919899,1728154238265,-2024.06082441,0.00010995,2]
[339919901,1728154238276,-2279.43368562,0.00010995,2]
[339919903,1728154238288,-313.3462662,0.00010995,2]
[339919905,1728154238303,-424.88308538,0.00010995,2]
[339919908,1728154238318,-12608.96321469,0.00010995,2]
[339919910,1728154238330,-6741.09567393,0.00010995,2]
[339919911,1728154238339,-206.74981512,0.00010997,2]
[339919912,1728154238349,-11894.84965687,0.00010999,2]
[339919913,1728154238358,-284.3876533,0.00010999,2]
[339919914,1728154238369,-215.6123467,0.00010999,2]
[339919915,1728154238379,-500.0,0.00010999,2]
[339919916,1728154238388,-300.0,0.00010999,2]
[339919917,1728154238398,-500.0,0.00010999,2]
[339919918,1728154238407,-433.22334242,0.00010999,2]
[339919919,1728154238418,-500.0,0.00010999,2]
[339919920,1728154238428,-436.28713714,0.00010999,2]
[339919921,1728154238438,-500.0,0.00010999,2]
[339919922,1728154238447,-500.0,0.00010999,2]
[339919923,1728154238456,-500.0,0.00010999,2]
[339919924,1728154238466,-500.0,0.00010999,2]
[339919925,1728154238475,-500.0,0.00010999,2]
[339919926,1728154238485,-500.0,0.00010999,2]
[339919927,1728154238495,-500.0,0.00010999,2]
[339919928,1728154238504,-810.0,0.00011,2]
[339919929,1728154238514,-2281.01835716,0.00011,2]
[339919930,1728154238525,-69206.29164798,0.00011,2]
[339919931,1728154238536,-3487.44358524,0.00011,2]
[339919932,1728154238548,-363.60613795,0.00011,2]
[339919937,1728154239968,-266.27,0.00011,2]
[339919938,1728154240036,-12277.84948,0.00011,2]
[339919939,1728154240047,-5307.9,0.00011,2]
[339919940,1728154240059,-711.24,0.00011,2]
[339919941,1728154240069,-1273.73772745,0.00011,2]
[339919942,1728154240080,-300.0,0.00011,2]
[339919943,1728154240101,-2297350.23356505,0.00011,2]
[339919944,1728154240110,-375.0,0.00011,2]
[339919945,1728154240119,-756826.68702671,0.00011,2]
[339919946,1728154240128,-250.0,0.00011,2]
[339919947,1728154240138,-5774313.79927442,0.00011,2]
[339919948,1728154240148,-51711.42980013,0.00011,2]
[339919949,1728154240159,-5058.0394192,0.00011,2]
[339919950,1728154240174,-91132.92550034,0.00011,2]
[339919951,1728154240185,-2080.25724065,0.00011,2]
[339919952,1728154240196,-1406.48926637,0.00011,2]
[339919953,1728154240206,-989.22878096,0.00011,2]
[339919954,1728154240217,-952.47687904,0.00011,2]
[339919955,1728154240228,-1060.86500547,0.00011,2]
[339919956,1728154240239,-560.58454009,0.00011,2]
[339919957,1728154240250,-21024.58440346,0.00011,2]
[339919958,1728154240261,-1739.18672139,0.00011,2]
[339919959,1728154240272,-1100.0,0.00011,2]
[339919960,1728154240283,-828.481,0.00011,2]
[339919961,1728154240294,-1420.92,0.00011,2]
[339919962,1728154240306,-2090.22070869,0.00011,2]
[339919963,1728154240317,-1293.64364182,0.00011,2]
[339919964,1728154240328,-1461.47293914,0.00011,2]
[339919965,1728154240343,-4130.24694756,0.00011,2]
[339919966,1728154240355,-328.47396994,0.00011,2]
[339919967,1728154240366,-270.59,0.00011,2]
[339919968,1728154240377,-496.07624443,0.00011,2]
[339919969,1728154240388,-93949.24311446,0.00011,2]
[339919970,1728154240400,-588.950825,0.00011,2]
[339919973,1728154240411,-492.89823535,0.00011,2]
[339920217,1728154242945,-20000.06474323,0.00011,2]
[339920232,1728154243087,-403.92333797,0.00011,2]
[339920234,1728154243098,-1554.62045512,0.00011,2]
[339920237,1728154243110,-1439.85165886,0.00011,2]
[339920239,1728154243122,-1497.00948158,0.00011,2]
[339920241,1728154243133,-259.86026,0.00011,2]
[339920243,1728154243144,-3455.53409534,0.00011,2]
[339920245,1728154243156,-343.92484184,0.00011,2]
[339920249,1728154243178,-254310.39987745,0.00011,2]
[339920251,1728154243189,-268.02886842,0.00011,2]
[339920253,1728154243199,-30977.33091246,0.00011,2]
[339920255,1728154243210,-11772.093878,0.00011,2]
[339920257,1728154243224,-8872.97509259,0.00011,2]
[339920259,1728154243235,-916.74900749,0.00011,2]
[339920261,1728154243246,-23054.96877284,0.00011,2]
[339920263,1728154243259,-300.0,0.00011,2]
[339920266,1728154243270,-787.34148369,0.00011,2]
[339920268,1728154243281,-322020.83467375,0.00011,2]
[339920270,1728154243293,-4202.89669979,0.00011,2]
[339920272,1728154243304,-2325.34922941,0.00011,2]
[339920274,1728154243316,-1098.75051472,0.00011,2]
[339920276,1728154243327,-42684.13102919,0.00011,2]
[339920278,1728154243338,-488.33433013,0.00011,2]
[339920280,1728154243349,-24396.16470046,0.00011,2]
[339920282,1728154243360,-15432.68907076,0.00011,2]
[339920284,1728154243371,-2020.12,0.00011,2]
[339920286,1728154243382,-39821.48750946,0.00011,2]
[339920288,1728154243393,-9956.95801704,0.00011,2]
[339920291,1728154243404,-583.4399992,0.00011,2]
[339920295,1728154243415,-7194.55678574,0.00011,2]
[339920298,1728154243426,-767.14366818,0.00011,2]
[339920301,1728154243436,-589.37436581,0.00011,2]
[339920304,1728154243447,-2541.3138532,0.00011,2]
[339920306,1728154243458,-69601.09999861,0.00011,2]
[339920308,1728154243469,-10852.61019446,0.00011,2]
[339920310,1728154243481,-397.66172814,0.00011,2]
[339920311,1728154243492,-341.04,0.00011,2]
[339920312,1728154243503,-712.48905944,0.00011,2]
[339920313,1728154243514,-11459.32520293,0.00011,2]
[339920314,1728154243525,-334.57153769,0.00011,2]
[339920315,1728154243536,-311.42,0.00011,2]
[339920316,1728154243547,-1611.83354181,0.00011,2]
[339920317,1728154243560,-11444.947811,0.00011,2]
[339920318,1728154243571,-807.83719621,0.00011,2]
[339920319,1728154243582,-301.616,0.00011,2]
[339920476,1728154245978,-8924.9356803,0.00011,2]
[339920477,1728154245990,-1033.05017563,0.00011,2]
[339920478,1728154246001,-148713.17009898,0.00011,2]
[339920479,1728154246012,-459.58986104,0.00011,2]
[339920480,1728154246023,-498.29912691,0.00011,2]
[339920481,1728154246037,-748.82902201,0.00011,2]
[339920482,1728154246048,-275.5687984,0.00011,2]
[339920483,1728154246081,-66203.62409326,0.00011,2]
[339920484,1728154246092,-930.0,0.00011,2]
[339920517,1728154247101,-754.85459043,0.00011,2]
[339920519,1728154247112,-1527.91062732,0.00011,2]
[339920521,1728154247123,-3168.79943377,0.00011,2]
[339920523,1728154247135,-58756.5005,0.00011,2]
[339920525,1728154247146,-11484.6256,0.00011,2]
[339920527,1728154247157,-9081.94093816,0.00011,2]
[339920529,1728154247169,-8220.0,0.00011,2]
[339920531,1728154247180,-5288.40137691,0.00011,2]
[339920532,1728154247191,-327.39,0.00011,2]
[339920534,1728154247202,-1264.7968584,0.00011,2]